bitfinex/quotes_SOLUSD_20250417
["timestamp","ask_amount","ask_price","bid_price","bid_amount"]
[1744852491179,82.8,131.72,131.69,13.69759706]
[1744852491907,82.8,131.73,131.69,21.29094436]
[1744852492082,82.8,131.73,131.72,13.69759706]
[1744852492282,82.8,131.73,131.69,7.5933473]
[1744852492485,82.8,131.73,131.7,13.69759706]
[1744852492896,82.8,131.73,131.71,13.69759706]
[1744852493573,82.8,131.73,131.7,13.69759706]
[1744852493780,82.8,131.73,131.69,7.5933473]
[1744852494003,82.8,131.73,131.7,21.29043469]
[1744852494586,82.8,131.73,131.71,13.69759706]
[1744852496878,82.8,131.73,131.7,7.59283763]
[1744852497289,82.8,131.73,131.71,13.69759706]
[1744852498987,82.8,131.73,131.7,21.29043469]
[1744852499291,82.8,131.73,131.69,13.69759706]
[1744852499907,82.8,131.73,131.68,7.59376088]
[1744852500093,82.8,131.73,131.69,13.69759706]
[1744852500917,82.8,131.73,131.7,13.69759706]
[1744852501405,82.8,131.73,131.72,13.69759706]
[1744852504511,82.8,131.75,131.74,13.69759706]
[1744852505905,82.8,131.75,131.71,26.0]
[1744852506110,21.28801975,131.75,131.7,13.69759706]
[1744852506290,13.69759706,131.74,131.7,13.69759706]
[1744852506691,21.28801975,131.75,131.71,13.69759706]
[1744852506916,82.8,131.75,131.73,13.69759706]
[1744852507515,82.8,131.75,131.72,13.69759706]
[1744852508909,2.6520892,131.76,131.72,7.59161587]
[1744852509117,2.6520892,131.76,131.73,13.69759706]
[1744852509409,2.6520892,131.76,131.68,0.14216157]
[1744852509410,13.69759706,131.74,131.67,7.59474443]
[1744852509619,115.14724592,131.73,131.68,13.69759706]
[1744852509989,115.14724592,131.73,131.69,13.69759706]
[1744852510193,2.6520892,131.76,131.72,13.69759706]
[1744852510407,2.6520892,131.76,131.75,13.69759706]
[1744852510718,2.6520892,131.76,131.74,13.69759706]
[1744852511795,2.6520892,131.76,131.73,7.59112235]
[1744852512103,2.6520892,131.76,131.73,13.69759706]
[1744852512815,2.6520892,131.76,131.75,13.69759706]
[1744852513420,2.6520892,131.76,131.74,13.69759706]
[1744852513717,2.6520892,131.76,131.75,13.69759706]
[1744852516624,2.6520892,131.76,131.75,21.28772988]
[1744852517594,2.6520892,131.76,131.75,13.69759706]
[1744852519120,2.6520892,131.76,131.75,21.28772988]
[1744852520010,2.6520892,131.76,131.75,13.69759706]
[1744852521321,2.6520892,131.76,131.72,8.2257]
[1744852521508,82.8,131.75,131.72,13.69759706]
[1744852523826,82.8,131.75,131.73,13.69759706]
[1744852524124,82.8,131.75,131.74,13.69759706]
[1744852524701,2.6520892,131.76,131.74,13.69759706]
[1744852524902,2.6520892,131.76,131.75,41.20539706]
[1744852525108,2.6520892,131.76,131.75,54.90299412]
[1744852525327,2.6520892,131.76,131.75,55.18731726]
[1744852526127,2.6520892,131.76,131.75,62.77745008]
[1744852529128,2.6520892,131.76,131.75,62.49312694]
[1744852529521,2.6520892,131.76,131.75,48.79552988]
[1744852529722,2.6520892,131.76,131.73,7.59075736]
[1744852529924,85.4520892,131.76,131.72,21.28926423]
[1744852530121,85.4520892,131.76,131.72,13.69759706]
[1744852530324,85.4520892,131.76,131.73,13.69759706]
[1744852531430,85.4520892,131.76,131.73,21.28883887]
[1744852531821,85.4520892,131.76,131.73,13.69759706]
[1744852532961,85.4520892,131.76,131.73,21.28879625]
[1744852533933,85.4520892,131.76,131.71,7.59243793]
[1744852534110,85.4520892,131.76,131.73,13.69759706]
[1744852535540,85.4520892,131.76,131.71,7.59243793]
[1744852535838,85.4520892,131.76,131.73,13.69759706]
[1744852536410,85.4520892,131.76,131.74,7.59070897]
[1744852537136,85.4520892,131.76,131.74,21.28830603]
[1744852541847,2.6520892,131.76,131.75,13.69759706]
[1744852543343,2.6520892,131.76,131.75,21.28772988]
[1744852547654,1e-08,131.76,131.75,21.28772988]
[1744852548245,1e-08,131.76,131.75,34.98532694]
[1744852549258,1e-08,131.77,131.76,32.5157]
[1744852549449,1e-08,131.77,131.76,59.91089412]
[1744852550032,1e-08,131.77,131.76,67.50045088]
[1744852552639,0.03,131.81,131.79,27.5237]
[1744852552640,1e-08,131.81,131.79,27.5237]
[1744852552954,1e-08,131.81,131.8,43.11519412]
[1744852554152,0.03,131.82,131.8,43.39951726]
[1744852554153,1e-08,131.82,131.8,43.39951726]
[1744852554359,1e-08,131.82,131.81,13.69759706]
[1744852554652,1e-08,131.82,131.81,21.28427485]
[1744852555948,1e-08,131.82,131.81,60.98187191]
[1744852556250,1e-08,131.82,131.81,61.26619505]
[1744852556939,0.03,131.87,131.84,26.0]
[1744852557139,0.03,131.87,131.86,13.69759706]
[1744852558045,0.03,131.87,131.86,21.28139806]
[1744852558354,0.03,131.87,131.85,13.69759706]
[1744852558751,0.03,131.87,131.86,13.69759706]
[1744852560251,0.03,131.87,131.85,21.28196693]
[1744852560861,0.03,131.87,131.83,7.58552681]
[1744852561048,0.03,131.87,131.85,13.69759706]
[1744852561451,0.03,131.87,131.86,13.69759706]
[1744852563158,0.03,131.87,131.86,8.74142196]
[1744852563462,82.8,131.86,131.79,20.49198868]
[1744852563639,82.8,131.85,131.81,8.74142196]
[1744852563955,91.54142196,131.85,131.81,8.74142196]
[1744852564368,8.74142196,131.83,131.77,15.7]
[1744852564541,8.74142196,131.83,131.78,34.74142196]
[1744852564542,82.8,131.83,131.78,34.74142196]
[1744852564870,82.8,131.83,131.79,8.74142196]
[1744852565463,99.12704802,131.83,131.79,8.74142196]
[1744852565649,82.8,131.83,131.79,8.74142196]
[1744852565851,27.39107082,131.84,131.79,8.74142196]
[1744852566237,18.64964886,131.81,131.76,15.7]
[1744852566444,8.74142196,131.8,131.76,15.7]
[1744852566665,34.97779916,131.81,131.76,24.44142196]
[1744852567163,39.9146478,131.81,131.76,29.3782706]
[1744852567350,96.4782706,131.8,131.76,15.7]
[1744852567544,96.4782706,131.79,131.74,13.6782706]
[1744852567745,96.4782706,131.79,131.75,13.6782706]
[1744852567746,82.8,131.79,131.75,13.6782706]
[1744852567946,82.8,131.79,131.77,13.6782706]
[1744852568658,82.8,131.79,131.78,13.6782706]
[1744852568962,82.8,131.79,131.77,13.6782706]
[1744852569366,82.8,131.79,131.78,13.6782706]
[1744852570057,82.8,131.82,131.78,13.6782706]
[1744852570253,82.8,131.82,131.8,13.6782706]
[1744852570768,82.8,131.82,131.81,13.6782706]
[1744852571145,82.8,131.85,131.81,21.26494839]
[1744852571366,23.28390591,131.86,131.83,13.6782706]
[1744852571564,15.7,131.86,131.83,13.6782706]
[1744852572565,82.8,131.85,131.83,13.6782706]
[1744852572761,82.8,131.85,131.84,13.6782706]
[1744852572943,82.8,131.85,131.83,13.6782706]
[1744852573140,82.8,131.85,131.82,13.6782706]
[1744852573339,82.8,131.85,131.81,13.6782706]
[1744852573544,82.8,131.85,131.82,13.6782706]
[1744852573760,82.8,131.85,131.81,13.6782706]
[1744852573964,96.4782706,131.85,131.8,13.6782706]
[1744852574261,104.06282292,131.85,131.8,13.6782706]
[1744852574451,104.06282292,131.85,131.81,13.6782706]
[1744852574763,82.8,131.85,131.83,13.6782706]
[1744852574952,82.8,131.85,131.84,13.6782706]
[1744852575147,82.83,131.87,131.84,13.6782706]
[1744852575377,82.83,131.87,131.86,13.6782706]
[1744852576456,82.83,131.87,131.86,21.2620716]
[1744852577046,0.03,131.87,131.86,21.2620716]
[1744852578273,0.03,131.87,131.86,13.6782706]
[1744852579789,0.03,131.87,131.86,21.2620716]
[1744852580573,0.03,131.87,131.86,13.6782706]
[1744852581571,0.03,131.87,131.86,21.2620716]
[1744852581870,0.03,131.87,131.86,7.583801]
[1744852582253,0.03,131.87,131.85,7.58416719]
[1744852582454,0.03,131.87,131.85,33.58416719]
[1744852583170,0.03,131.87,131.86,13.6782706]
[1744852583663,0.03,131.87,131.86,21.2620716]
[1744852586479,0.03,131.87,131.83,26.0]
[1744852586674,0.03,131.87,131.84,13.6782706]
[1744852587176,0.03,131.87,131.82,7.58594198]
[1744852587382,13.6782706,131.85,131.81,13.6782706]
[1744852588561,21.26275358,131.85,131.81,13.6782706]
[1744852588763,82.8,131.84,131.81,13.6782706]
[1744852588971,82.8,131.83,131.8,13.6782706]
[1744852589372,82.8,131.83,131.81,13.6782706]
[1744852594573,82.8,131.83,131.82,13.6782706]
[1744852595489,82.8,131.85,131.82,13.6782706]
[1744852596570,90.38449423,131.85,131.81,13.6782706]
[1744852596784,13.6782706,131.83,131.79,13.6782706]
[1744852597173,32.32791946,131.84,131.79,13.6782706]
[1744852597489,39.91301845,131.84,131.79,13.6782706]
[1744852599074,13.6782706,131.83,131.79,13.6782706]
[1744852600471,13.6782706,131.81,131.76,7.8696]
[1744852600674,82.8,131.8,131.76,15.3075706]
[1744852600874,82.8,131.8,131.77,13.6782706]
[1744852602072,82.8,131.8,131.77,21.2671612]
[1744852603994,82.8,131.8,131.77,47.2671612]
[1744852604191,82.8,131.8,131.78,13.6782706]
[1744852605474,82.8,131.8,131.77,21.26718797]
[1744852605675,82.8,131.8,131.78,13.6782706]
[1744852607095,82.8,131.8,131.79,13.6782706]
[1744852607302,82.8,131.83,131.79,8.7497771]
[1744852607597,82.8,131.82,131.8,8.7497771]
[1744852607774,82.8,131.82,131.81,8.7497771]
[1744852608099,82.8,131.82,131.8,7.58721473]
[1744852608306,82.8,131.82,131.81,8.7497771]
[1744852609198,82.8,131.82,131.8,7.58721473]
[1744852609397,82.8,131.82,131.81,13.66791281]
[1744852610106,82.8,131.82,131.8,13.66791281]
[1744852610285,82.8,131.82,131.81,13.66791281]
[1744852611105,82.8,131.82,131.8,13.66791281]
[1744852611986,82.8,131.82,131.8,21.25499733]
[1744852613106,96.46791281,131.84,131.8,21.25499733]
[1744852614206,96.46791281,131.84,131.8,13.66791281]
[1744852614408,104.05288541,131.84,131.8,13.66791281]
[1744852615104,32.31756167,131.83,131.78,13.66791281]
[1744852615314,13.66791281,131.8,131.76,0.063]
[1744852616106,21.25539284,131.8,131.76,0.063]
[1744852617820,13.66791281,131.8,131.76,0.063]
[1744852618514,55.60439706,131.81,131.76,13.73091281]
[1744852618735,41.93648425,131.81,131.76,13.73091281]
[1744852618918,82.8,131.8,131.76,13.73091281]
[1744852619213,44.96237864,131.84,131.76,13.73091281]
[1744852619214,82.8,131.86,131.79,47.48231281]
[1744852619424,82.8,131.86,131.83,13.66791281]
[1744852619583,82.8,131.86,131.84,13.66791281]
[1744852621219,82.8,131.86,131.83,21.25306445]
[1744852621396,82.8,131.86,131.83,13.66791281]
[1744852621906,82.8,131.86,131.83,21.25342243]
[1744852622091,82.8,131.86,131.84,13.66791281]
[1744852622299,82.8,131.86,131.82,21.25381663]
[1744852622927,82.8,131.86,131.82,7.58590382]
[1744852623232,82.8,131.86,131.82,21.25381663]
[1744852625623,96.46791281,131.86,131.82,13.66791281]
[1744852625827,87.04791281,131.86,131.81,7.58645886]
[1744852626012,87.04791281,131.86,131.82,13.66791281]
[1744852626410,87.04791281,131.86,131.81,21.25437167]
[1744852627428,87.04791281,131.86,131.82,13.66791281]
[1744852627723,73.38,131.86,131.85,13.66791281]
[1744852629127,0.03,131.87,131.85,13.66791281]
[1744852629298,0.03,131.87,131.86,13.66791281]
[1744852629706,0.03,131.87,131.86,21.25171381]
[1744852631822,0.03,131.87,131.86,7.583801]
[1744852632015,0.03,131.87,131.86,21.25171381]
[1744852635025,0.03,131.87,131.85,7.58437618]
[1744852635225,0.03,131.87,131.86,8.74098791]
[1744852636025,0.03,131.87,131.86,16.32478891]
[1744852639032,0.03,131.87,131.86,16.60911205]
[1744852639232,1e-08,131.87,131.86,16.60911205]
[1744852639824,1e-08,131.87,131.86,16.75127362]
[1744852640333,1e-08,131.87,131.86,7.583801]
[1744852640531,1e-08,131.87,131.86,16.32478891]
[1744852641016,1e-08,131.87,131.85,16.3251382]
[1744852641536,1e-08,131.87,131.86,8.74098791]
[1744852642323,1e-08,131.87,131.86,42.32478891]
[1744852646921,1e-08,131.87,131.85,7.58422543]
[1744852647327,1e-08,131.87,131.85,16.32521334]
[1744852647639,1e-08,131.87,131.86,8.74098791]
[1744852648242,1e-08,131.87,131.85,8.74098791]
[1744852649920,1e-08,131.87,131.86,8.74098791]
[1744852650346,1e-08,131.87,131.86,16.32478891]
[1744852651143,1e-08,131.87,131.86,42.32478891]
[1744852657147,1e-08,131.87,131.86,43.89878891]
[1744852662033,1e-08,131.87,131.86,42.32478891]
[1744852665437,1e-08,131.87,131.83,9.18761093]
[1744852665646,73.38000001,131.87,131.83,16.32629884]
[1744852666345,73.38000001,131.87,131.85,8.74098791]
[1744852666546,1e-08,131.87,131.86,8.74098791]
[1744852667945,1e-08,131.87,131.83,7.58531093]
[1744852668156,1e-08,131.87,131.86,8.74098791]
[1744852668665,1e-08,131.87,131.86,16.32478891]
[1744852669456,0.01000001,131.88,131.86,58.05592526]
[1744852669661,74.9852,131.94,131.86,58.05592526]
[1744852669662,0.07508897,131.96,131.91,19.07613357]
[1744852669851,0.03,132.01,131.97,26.0]
[1744852670165,0.03,132.01,131.98,8.74098791]
[1744852670463,0.03,132.01,131.99,8.74098791]
[1744852670670,0.03,132.01,131.98,8.74098791]
[1744852670839,18.67964886,132.01,131.98,8.74098791]
[1744852671040,18.67964886,132.01,131.97,8.74098791]
[1744852671258,18.67964886,132.01,131.98,13.63383439]
[1744852672160,113.26883348,132.01,131.96,13.63383439]
[1744852672345,113.26883348,132.01,131.97,13.63383439]
[1744852674341,73.41,132.01,131.99,13.63383439]
[1744852674546,73.41,132.01,131.98,13.63383439]
[1744852674955,73.41,132.01,131.99,13.63383439]
[1744852675475,73.41,132.01,131.98,13.63383439]
[1744852676356,73.41,132.01,131.99,13.63383439]
[1744852676874,73.41,132.01,131.95,33.57855093]
[1744852677054,73.41,132.01,131.99,13.63383439]
[1744852677249,80.98536683,132.01,131.98,13.63383439]
[1744852677451,73.41,132.01,131.98,13.63383439]
[1744852677775,73.41,132.01,131.99,13.63383439]
[1744852678151,73.41,132.01,132.0,13.63383439]
[1744852679471,0.03,132.01,132.0,34.84342635]
[1744852679852,0.03,132.01,132.0,21.20959196]
[1744852680251,0.03,132.07,132.03,26.0]
[1744852680462,0.03,132.07,132.06,13.63383439]
[1744852680663,0.03,132.07,132.02,42.19113466]
[1744852680664,0.03,132.07,132.02,23.2546099]
[1744852680870,0.03,132.07,132.04,13.63383439]
[1744852681071,0.03,132.07,132.05,13.63383439]
[1744852681571,0.03,132.07,132.02,23.2546099]
[1744852681572,0.03,132.07,132.06,13.63383439]
[1744852681764,0.03,132.07,132.06,27.26766878]
[1744852682070,0.03,132.07,132.06,27.55199192]
[1744852682471,0.03,132.07,132.06,21.20615]
[1744852683077,0.03,132.07,132.06,34.83998439]
[1744852683463,0.03,132.07,132.06,21.20615]
[1744852685175,0.03,132.07,132.06,13.63383439]
[1744852685686,0.03,132.07,132.06,21.20615]
[1744852685890,0.03,132.07,132.06,13.63383439]
[1744852686069,0.03,132.07,132.01,15.66]
[1744852686273,73.41,132.07,132.03,39.63383439]
[1744852686588,73.41,132.07,132.04,13.63383439]
[1744852691875,73.41,132.07,132.01,41.66]
[1744852692079,87.04383439,132.07,132.03,13.63383439]
[1744852692284,73.41,132.07,132.04,13.63383439]
[1744852694599,73.41,132.07,132.03,13.63383439]
[1744852694768,32.28348325,132.06,131.99,7.44936128]
[1744852694965,32.28348325,132.04,131.99,19.55929567]
[1744852695177,13.63383439,132.03,131.98,23.23653373]
[1744852695374,73.38,132.02,132.01,13.63383439]
[1744852695583,73.41,132.07,132.01,13.63383439]
[1744852695897,73.41,132.07,132.05,13.63383439]
[1744852697001,73.41,132.07,132.04,13.63383439]
[1744852697375,73.41,132.07,132.03,13.63383439]
[1744852698704,73.41,132.07,132.03,21.20756736]
[1744852698910,73.41,132.07,132.04,13.63383439]
[1744852700003,0.03,132.07,132.06,13.63383439]
[1744852700704,0.03,132.07,132.06,60.83998439]
[1744852702499,0.03,132.07,132.06,47.20615]
[1744852706887,0.03,132.07,132.05,13.63383439]
[1744852707589,0.03,132.07,132.06,21.20615]
[1744852708681,0.03,132.07,132.06,47.20615]
[1744852709688,0.03,132.13,132.09,27.5963]
[1744852710023,0.03,132.13,132.12,13.63383439]
[1744852710813,0.03,132.13,132.09,43.2563]
[1744852710986,0.03,132.13,132.11,13.63383439]
[1744852711183,0.03,132.13,132.09,15.66]
[1744852711380,0.03,132.13,132.11,13.63383439]
[1744852711581,0.03,132.13,132.12,13.63383439]
[1744852711785,73.41,132.13,132.06,21.41173439]
[1744852712014,13.63383439,132.11,132.04,15.66]
[1744852712186,73.38,132.12,132.05,21.20672344]
[1744852712187,87.01383439,132.1,132.05,21.20672344]
[1744852712389,73.38,132.09,132.06,13.63383439]
[1744852713091,73.38,132.09,132.05,7.57288905]
[1744852713286,73.38,132.09,132.06,13.63383439]
[1744852715301,73.38,132.09,132.06,21.20600756]
[1744852715813,73.38,132.09,132.06,13.63383439]
[1744852716001,73.38,132.09,132.05,21.20631724]
[1744852718811,53.38,132.09,132.05,21.20631724]
[1744852720287,53.38,132.09,132.06,13.63383439]
[1744852721395,53.38,132.12,132.08,13.63383439]
[1744852721619,53.38,132.12,132.1,13.63383439]
[1744852721790,53.38,132.12,132.11,13.63383439]
[1744852721989,0.03,132.13,132.11,13.63383439]
[1744852722513,0.03,132.13,132.11,21.20299197]
[1744852725204,0.03,132.13,132.11,7.56915758]
[1744852730840,0.03,132.13,132.08,18.92775863]
[1744852731125,0.03,132.13,132.1,13.63383439]
[1744852731797,0.03,132.13,132.11,13.63383439]
[1744852732297,0.03,132.13,132.11,7.56931773]
[1744852732804,0.03,132.13,132.11,21.20315212]
[1744852734233,0.03,132.13,132.1,21.20377671]
[1744852734434,13.66383439,132.13,132.1,7.56994232]
[1744852734930,13.66383439,132.13,132.09,7.57045422]
[1744852735123,13.63383439,132.11,132.07,21.20502223]
[1744852735500,67.01383439,132.12,132.07,21.20502223]
[1744852735702,67.01383439,132.12,132.04,43.2054]
[1744852735703,13.63383439,132.11,132.06,7.57208736]
[1744852735902,67.01383439,132.1,132.05,21.20653776]
[1744852736840,67.01383439,132.1,132.05,7.57270337]
[1744852737020,67.01383439,132.1,132.05,21.20653776]
[1744852737525,74.58390679,132.1,132.05,21.20653776]
[1744852737709,67.01383439,132.1,132.06,13.63383439]
[1744852738234,53.38,132.1,132.06,13.63383439]
[1744852738435,53.38,132.1,132.07,13.63383439]
[1744852738732,53.38,132.09,132.07,13.63383439]
[1744852738932,53.38,132.09,132.06,21.20604204]
[1744852739829,53.38,132.09,132.06,7.57220765]
[1744852740205,53.38,132.09,132.06,21.20604204]
[1744852742928,53.38,132.09,132.06,7.57220765]
[1744852743125,53.38,132.09,132.05,7.57287189]
[1744852743126,67.01383439,132.09,132.05,7.57287189]
[1744852743531,53.38,132.09,132.05,21.20670628]
[1744852744017,53.38,132.09,132.06,13.63383439]
[1744852744636,54.9745,132.13,132.08,13.63383439]
[1744852744847,54.9745,132.13,132.12,13.63383439]
[1744852744848,53.41,132.13,132.12,13.63383439]
[1744852746033,53.41,132.13,132.09,7.5705958]
[1744852746235,53.41,132.13,132.12,13.63383439]
[1744852747829,53.41,132.13,132.11,13.63383439]
[1744852749136,53.41,132.13,132.09,26.49708531]
[1744852749334,53.41,132.13,132.11,13.63383439]
[1744852749648,53.41,132.13,132.11,7.56923769]
[1744852750323,53.41,132.13,132.1,7.56992933]
[1744852750717,53.41,132.13,132.1,21.20376372]
[1744852751634,53.41,132.13,132.11,13.63383439]
[1744852751839,67.04383439,132.13,132.08,7.57116898]
[1744852752141,13.63383439,132.1,132.04,42.16571701]
[1744852752325,13.63383439,132.1,132.05,13.63383439]
[1744852752529,53.38,132.09,132.06,13.63383439]
[1744852754934,53.38,132.09,132.04,42.16571701]
[1744852755131,53.38,132.08,132.04,42.16571701]
[1744852755441,53.38,132.08,132.05,13.63383439]
[1744852755740,53.38,132.08,132.06,13.63383439]
[1744852756646,53.38,132.08,132.06,21.20558753]
[1744852757843,53.38,132.08,132.06,7.57175314]
[1744852758138,53.38,132.08,132.06,21.20558753]
[1744852759048,53.38,132.08,132.07,13.63383439]
[1744852759715,53.38,132.08,132.06,13.63383439]
[1744852760122,53.38,132.08,132.07,7.57174225]
[1744852760928,53.38,132.08,132.05,7.57288905]
[1744852761633,13.63383439,132.06,132.01,7.57518369]
[1744852761948,67.01383439,132.05,132.01,7.57518369]
[1744852762340,13.63383439,132.04,132.0,7.63860339]
[1744852762827,67.01383439,132.05,132.0,21.27243778]
[1744852763022,53.38,132.05,132.0,21.27243778]
[1744852763225,13.63383439,132.04,132.0,7.63860339]
[1744852764044,13.63383439,132.04,132.0,0.063]
[1744852764343,53.38,132.03,132.0,0.063]
[1744852764525,53.38,132.02,132.0,0.063]
[1744852765643,53.38,132.01,132.0,0.063]
[1744852765947,32.28348325,132.01,132.0,0.063]
[1744852766245,39.85866694,132.01,132.0,0.063]
[1744852767246,57.45065165,132.01,132.0,0.063]
[1744852767549,19.07613357,132.0,131.99,0.063]
[1744852767850,46.34380235,132.0,131.99,0.063]
[1744852768439,53.91955992,132.0,131.99,0.063]
[1744852769637,53.91955992,132.0,131.96,0.063]
[1744852769638,19.07613357,131.98,131.96,0.063]
[1744852769836,32.70996796,131.97,131.96,1e-08]
[1744852770033,32.70996796,131.97,131.95,0.063]
[1744852770034,19.07613357,131.96,131.95,0.063]
[1744852770231,48.36996796,131.96,131.95,0.063]
[1744852770553,69.5818563,131.96,131.95,1e-08]
[1744852770763,56.94802191,131.96,131.95,1e-08]
[1744852771272,44.64964886,131.93,131.92,0.063]
[1744852771438,58.28348325,131.93,131.92,0.063]
[1744852772647,65.8632604,131.93,131.92,0.063]
[1744852773448,66.28974511,131.93,131.92,0.063]
[1744852774531,82.674,131.91,131.86,21.21754489]
[1744852774758,18.64964886,131.89,131.86,13.63383439]
[1744852775356,18.64964886,131.89,131.86,21.21761555]
[1744852775743,82.674,131.9,131.87,13.63383439]
[1744852776054,82.674,131.9,131.88,13.69683439]
[1744852776742,101.32364886,131.9,131.89,13.63383439]
[1744852776945,82.674,131.92,131.89,15.28573439]
[1744852777150,82.674,131.95,131.91,39.63383439]
[1744852777354,82.674,131.95,131.94,13.63383439]
[1744852777656,55.29383439,132.0,131.94,27.26766878]
[1744852777657,82.674,131.98,131.94,27.26766878]
[1744852777856,82.674,131.98,131.96,13.63383439]
[1744852778962,82.674,131.98,131.96,21.21148439]
[1744852779532,82.674,131.98,131.97,13.63383439]
[1744852780956,82.674,131.98,131.96,13.63383439]
[1744852781339,82.674,131.98,131.97,13.63383439]
[1744852781934,82.674,131.98,131.95,7.57862826]
[1744852782138,82.674,131.98,131.96,13.63383439]
[1744852782882,82.674,131.98,131.94,21.21285874]
[1744852783169,82.674,131.97,131.94,21.21285874]
[1744852783760,82.674,131.97,131.94,13.63383439]
[1744852783970,101.32364886,131.96,131.91,41.66]
[1744852784160,82.674,131.95,131.93,13.63383439]
[1744852786273,82.674,131.95,131.92,13.63383439]
[1744852787371,82.674,131.95,131.93,13.63383439]
[1744852787665,82.674,131.95,131.92,13.63383439]
[1744852787878,114.95748325,131.94,131.89,13.63383439]
[1744852788046,101.32364886,131.94,131.9,13.63383439]
[1744852789092,83.10048471,131.93,131.88,0.063]
[1744852789278,32.28348325,131.89,131.88,0.063]
[1744852789983,32.70996796,131.89,131.88,0.063]
[1744852790165,48.36996796,131.89,131.88,0.063]
[1744852791487,55.95204393,131.89,131.88,0.063]
[1744852792379,18.64964886,131.91,131.88,0.063]
[1744852792570,18.64964886,131.91,131.88,13.69683439]
[1744852794189,18.64964886,131.91,131.88,21.27948075]
[1744852795294,82.8,131.9,131.89,13.63383439]
[1744852795791,6.02694791,132.0,131.93,26.0]
[1744852795990,0.03,132.0,131.96,13.63383439]
[1744852797178,0.03,132.0,131.97,21.816778]
[1744852797907,0.03,132.0,131.98,21.816778]
[1744852800800,82.8,131.99,131.98,21.816778]
[1744852803001,82.8,131.99,131.96,7.57789574]
[1744852803199,82.8,131.99,131.98,21.816778]
[1744852805201,82.8,131.99,131.97,21.816778]
[1744852806600,101.44964886,131.98,131.9,7.7633]
[1744852806802,18.64964886,131.96,131.93,21.816778]
[1744852806984,18.64964886,131.96,131.93,47.816778]
[1744852807979,18.64964886,131.96,131.93,26.0]
[1744852808704,18.64964886,131.96,131.93,33.57976362]
[1744852808907,82.8,131.97,131.94,21.816778]
[1744852809516,82.8,131.97,131.95,21.816778]
[1744852809705,82.8,131.97,131.96,21.816778]
[1744852809906,82.8,131.99,131.95,26.0]
[1744852810099,82.8,131.99,131.96,21.816778]
[1744852810805,82.8,131.99,131.97,21.816778]
[1744852811517,82.8,131.99,131.98,21.816778]
[1744852812995,18.64964886,131.98,131.96,21.816778]
[1744852813191,18.64964886,131.98,131.93,33.57977715]
[1744852813514,7.6059441,132.0,131.97,47.816778]
[1744852813515,0.03,132.0,131.97,47.816778]
[1744852813726,0.03,132.0,131.94,21.816778]
[1744852813894,0.03,132.0,131.97,21.816778]
[1744852816520,0.03,132.0,131.97,29.39415587]
[1744852817195,0.03,132.0,131.97,21.21063639]
[1744852817821,0.03,132.0,131.98,13.63325852]
[1744852817992,0.03,132.0,131.99,13.63325852]
[1744852819300,0.03,132.0,131.99,27.26651704]
[1744852819918,0.03,132.0,131.99,34.84284858]
[1744852820312,0.03,132.0,131.99,21.20959006]
[1744852822610,0.03,132.01,131.99,34.84284858]
[1744852822812,0.03,132.05,132.0,53.26651704]
[1744852823115,0.03,132.05,132.04,15.26945852]
[1744852823715,0.03,132.05,132.04,36.47617962]
[1744852824023,0.03,132.06,132.04,36.47617962]
[1744852824242,0.03,132.06,132.05,27.26651704]
[1744852825140,0.03,132.06,132.05,13.63325852]
[1744852825714,0.03,132.06,132.05,21.20614757]
[1744852825928,0.03,132.06,132.05,34.83940609]
[1744852827748,0.03,132.06,132.05,47.20614757]
[1744852827955,0.03,132.06,132.05,60.83940609]
[1744852829345,0.03,132.06,132.05,39.63325852]
[1744852829530,0.03,132.06,132.05,47.20614757]
[1744852829844,0.03,132.06,132.05,60.83940609]
[1744852834546,0.03,132.06,132.05,47.20614757]
[1744852835123,0.03,132.06,132.05,60.83940609]
[1744852836146,0.03,132.06,132.05,47.20614757]
[1744852837455,0.03,132.06,132.05,47.20614757]